[Event "EYCC Open U20 2021"]
[Site "Tornelo"]
[Date "2021.10.15"]
[Round "1.10"]
[White "Koelle, Tobias"]
[Black "Kirilmaz, Emre"]
[Result "0-1"]
[ECO "E17"]
[WhiteElo "2393"]
[BlackElo "2147"]
[Annotator "NA"]
[PlyCount "132"]
[EventDate "2021.10.15"]
[EventType "swiss"]
[EventCountry "NET"]
[SourceTitle "playchess.com"]
[Source "ChessBase"]
[SourceQuality "1"]
[TimeControl "5400+30"]

1. d4 {[%emt 0:00:30]} Nf6 {[%emt 0:00:53]} 2. c4 {[%emt 0:00:37]} e6 {[%emt 0:00:13]} 3. Nf3 {[%emt 0:00:07]} b6 {[%emt 0:00:14]} 4. g3 {[%emt 0:00:08]} Bb7 {[%emt 0:03:51]} 5. Bg2 {[%emt 0:00:21]} Be7 {[%emt 0:00:20]} 6. O-O {[%emt 0:00:08]} O-O {[%emt 0:00:48]} 7. d5 {[%emt 0:00:48]} exd5 {[%emt 0:00:18]} 8. Nh4 {[%emt 0:00:09]} c6 {[%emt 0:00:15]} 9. cxd5 {[%emt 0:00:09]} Nxd5 {[%emt 0:00:29]} 10. Nf5 {[%emt 0:00:09]} Nf6 {[%emt 0:01:39]} 11. e4 {[%emt 0:06:09]} d5 {[%emt 0:02:29]} 12. e5 {[%emt 0:08:23]} Ne8 {[%emt 0:00:45]} 13. Nc3 $15 {[%emt 0:05:22]} Na6 {[%emt 0:10:26]} 14. h4 {[%emt 0:05:09]} Nac7 {[%emt 0:06:01]} 15. h5 {[%emt 0:04:02]} Bb4 {[%emt 0:11:49]} 16. Qg4 {[%emt 0:06:20]} Bxc3 {[%emt 0:01:21]} 17. bxc3 {[%emt 0:05:30]} Bc8 {[%emt 0:02:37]} 18. Qf4 {[%emt 0:18:27]} f6 {[%emt 0:05:12]} 19. Ba3 {[%emt 0:04:33]} c5 {[%emt 0:03:58]} 20. Ne3 {[%emt 0:02:53]} Be6 {[%emt 0:04:57]} 21. c4 {[%emt 0:09:44]} fxe5 {[%emt 0:03:45]} 22. Qxe5 {[%emt 0:00:14]} Qf6 {[%emt 0:00:21]} 23. Bb2 {[%emt 0:03:56]} d4 {[%emt 0:00:27]} 24. Qxf6 {[%emt 0:00:44]} Nxf6 {[%emt 0:00:07]} 25. Bxa8 {[%emt 0:00:13]} Rxa8 {[%emt 0:01:04]} 26. Ng2 {[%emt 0:00:30]} Bxc4 {[%emt 0:00:27]} 27. Rfc1 {[%emt 0:00:07]} b5 {[%emt 0:01:58]} 28. a4 {[%emt 0:01:09]} a6 {[%emt 0:00:13]} 29. Nf4 {[%emt 0:01:49]} Rc8 {[%emt 0:01:14]} 30. axb5 {[%emt 0:02:07]} axb5 {[%emt 0:02:50]} 31. Ra7 {[%emt 0:00:08]} Ncd5 {[%emt 0:02:50]} 32. Nxd5 {[%emt 0:04:41]} Nxd5 {[%emt 0:00:11]} 33. Re1 {[%emt 0:00:27]} h6 {[%emt 0:03:31]} 34. Rb7 {[%emt 0:03:50]} b4 {[%emt 0:00:27]} 35. Ra1 {[%emt 0:01:42]} Nf6 {[%emt 0:04:45]} 36. Rc1 {[%emt 0:00:42]} Bd5 {[%emt 0:11:24]} 37. Rxb4 {[%emt 0:00:13]} d3 {[%emt 0:01:11]} 38. Rb5 {[%emt 0:02:45]} d2 {[%emt 0:01:09]} 39. Rd1 {[%emt 0:00:08]} Re8 {[%emt 0:00:14]} 40. Bc3 {[%emt 0:00:23]} Bf3 {[%emt 0:00:19]} 41. Rbb1 {[%emt 0:02:38]} Ne4 {[%emt 0:00:28]} 42. Rxd2 {[%emt 0:01:34]} Nxc3 {[%emt 0:00:09]} 43. Ra1 {[%emt 0:00:15]} c4 {[%emt 0:00:57]} 44. Rc2 {[%emt 0:01:25]} Ne2+ {[%emt 0:00:12]} 45. Kh2 {[%emt 0:00:07]} c3 {[%emt 0:00:43]} 46. Ra4 {[%emt 0:01:00]} Bxh5 {[%emt 0:00:24]} 47. Rc4 {[%emt 0:00:53]} Bg6 {[%emt 0:01:29]} 48. R4xc3 {[%emt 0:00:16]} Nxc3 {[%emt 0:00:23]} 49. Rxc3 {[%emt 0:00:06]} Re2 {[%emt 0:00:52]} 50. Kg2 {[%emt 0:00:14]} Be4+ {[%emt 0:00:21]} 51. Kf1 {[%emt 0:00:07]} Rc2 {[%emt 0:00:28]} 52. Re3 {[%emt 0:00:11]} Bc6 {[%emt 0:00:06]} 53. Re7 {[%emt 0:00:07]} Bf3 {[%emt 0:00:31]} 54. Ke1 {[%emt 0:00:06]} Rc1+ {[%emt 0:00:11]} 55. Kd2 {[%emt 0:00:06]} Rd1+ {[%emt 0:00:06]} 56. Kc3 {[%emt 0:00:08]} Rf1 {[%emt 0:00:06]} 57. Kd4 {[%emt 0:00:06]} Rxf2 {[%emt 0:00:05]} 58. Ra7 {[%emt 0:00:10]} Bh5 {[%emt 0:00:16]} 59. Ke5 {[%emt 0:00:05]} Rf3 {[%emt 0:00:09]} 60. Ke6 {[%emt 0:00:08]} Rxg3 {[%emt 0:00:10]} 61. Ra8+ {[%emt 0:00:08]} Kh7 {[%emt 0:00:05]} 62. Rb8 {[%emt 0:00:04]} Rf3 {[%emt 0:00:18]} 63. Rd8 {[%emt 0:00:07]} Bg4+ {[%emt 0:00:26]} 64. Ke7 {[%emt 0:00:07]} Re3+ {[%emt 0:00:09]} 65. Kf8 {[%emt 0:00:07]} Bh5 {[%emt 0:00:19]} 66. Re8 {[%emt 0:00:05]} Rxe8# {[%emt 0:00:08]} 0-1

[Event "EYCC Open U20 2021"]
[Site "Tornelo"]
[Date "2021.10.15"]
[Round "1.11"]
[White "Nordquelle, Daniel"]
[Black "Rozen, Eytan"]
[Result "0-1"]
[ECO "B12"]
[WhiteElo "2143"]
[BlackElo "2386"]
[Annotator "ChessBase"]
[PlyCount "60"]
[EventDate "2021.10.15"]
[EventType "swiss"]
[EventCountry "NET"]
[SourceTitle "playchess.com"]
[Source "ChessBase"]
[SourceQuality "1"]
[TimeControl "5400+30"]

1. e4 {[%emt 0:00:30]} c6 {[%emt 0:00:40]} 2. d4 {[%emt 0:00:04]} d5 {[%emt 0:00:03]} 3. e5 {[%emt 0:00:05]} Bf5 {[%emt 0:00:04]} 4. Nf3 {[%emt 0:00:10]} e6 {[%emt 0:00:06]} 5. Be2 {[%emt 0:00:07]} Nd7 {[%emt 0:00:32]} 6. O-O {[%emt 0:02:10]} Ne7 {[%emt 0:00:28]} 7. Nbd2 {[%emt 0:00:13]} c5 {[%emt 0:01:10]} 8. c4 {[%emt 0:09:06]} dxc4 {[%emt 0:00:52]} 9. Nxc4 {[%emt 0:05:01]} Nc6 {[%emt 0:00:06]} 10. Bg5 {[%emt 0:08:20]} Qb8 {[%emt 0:04:37]} 11. d5 {[%emt 0:09:46]} exd5 {[%emt 0:01:20]} 12. Qxd5 {[%emt 0:00:11]} Nb6 {[%emt 0:01:26]} 13. Qd2 {[%emt 0:08:04]} Be6 {[%emt 0:04:54]} 14. Rad1 {[%emt 0:04:50]} h6 {[%emt 0:03:32]} 15. Bh4 {[%emt 0:01:05]} g5 {[%emt 0:03:12]} 16. Bg3 {[%emt 0:00:03]} Nxc4 {[%emt 0:02:59]} 17. Bxc4 {[%emt 0:00:18]} Be7 {[%emt 0:00:19]} 18. Bxe6 {[%emt 0:02:11]} fxe6 {[%emt 0:00:10]} 19. Qd3 {[%emt 0:17:10]} Kf7 {[%emt 0:00:29]} 20. Nd2 {[%emt 0:01:10]} Qd8 {[%emt 0:06:08]} 21. Qf3+ {[%emt 0:03:56]} Kg7 {[%emt 0:00:18]} 22. Nb3 {[%emt 0:01:45]} Qe8 {[%emt 0:04:27]} 23. Qe3 {[%emt 0:03:55]} b6 {[%emt 0:01:24]} 24. f4 {[%emt 0:00:57]} c4 {[%emt 0:04:02]} 25. f5 {[%emt 0:07:14]} exf5 {[%emt 0:02:23]} 26. e6 {[%emt 0:02:46]} cxb3 {[%emt 0:02:14]} 27. Rxf5 {[%emt 0:10:10]} Rf8 {[%emt 0:07:32]} 28. Be5+ {[%emt 0:02:25]} Kg8 {[%emt 0:01:50]} 29. Rxf8+ {[%emt 0:00:30]} Qxf8 {[%emt 0:00:15]} 30. Bc3 {[%emt 0:00:43]} Bc5 {[%emt 0:00:15]} 0-1

[Event "EYCC Open U20 2021"]
[Site "Tornelo"]
[Date "2021.10.15"]
[Round "2.1"]
[White "Leisch, Lukas"]
[Black "Salemgareev, Tagir"]
[Result "0-1"]
[ECO "A20"]
[WhiteElo "2406"]
[BlackElo "2489"]
[Annotator "ChessBase"]
[PlyCount "84"]
[EventDate "2021.10.15"]
[EventType "swiss"]
[EventCountry "NET"]
[SourceTitle "playchess.com"]
[Source "ChessBase"]
[SourceQuality "1"]
[TimeControl "5400+30"]

1. c4 {[%emt 0:00:38]} e5 {[%emt 0:08:52]} 2. g3 {[%emt 0:00:05]} Nf6 {[%emt 0:00:53]} 3. Bg2 {[%emt 0:00:05]} d5 {[%emt 0:00:09]} 4. cxd5 {[%emt 0:00:05]} Nxd5 {[%emt 0:00:05]} 5. Nf3 {[%emt 0:00:06]} Nc6 {[%emt 0:00:05]} 6. O-O {[%emt 0:00:05]} Be7 {[%emt 0:00:16]} 7. d4 {[%emt 0:08:40]} e4 {[%emt 0:01:49]} 8. Ne5 {[%emt 0:00:30]} f5 {[%emt 0:00:18]} 9. Nxc6 {[%emt 0:00:29]} bxc6 {[%emt 0:00:07]} 10. Qa4 {[%emt 0:04:48]} Qd6 {[%emt 0:03:44]} 11. Rd1 {[%emt 0:06:54]} O-O {[%emt 0:03:27]} 12. Nc3 {[%emt 0:00:55]} Be6 {[%emt 0:02:05]} 13. Nxd5 {[%emt 0:10:50]} Bxd5 {[%emt 0:01:17]} 14. Bf4 {[%emt 0:00:12]} Qd7 {[%emt 0:00:30]} 15. b4 {[%emt 0:04:19]} g5 {[%emt 0:02:20]} 16. Be5 {[%emt 0:00:18]} f4 {[%emt 0:04:52]} 17. Rab1 {[%emt 0:03:37]} Bd6 {[%emt 0:04:45]} 18. b5 {[%emt 0:07:40]} cxb5 {[%emt 0:03:59]} 19. Rxb5 {[%emt 0:09:14]} Qe6 {[%emt 0:07:55]} 20. Bxd6 {[%emt 0:10:06]} Qxd6 {[%emt 0:00:42]} 21. Qa5 {[%emt 0:02:27]} c6 {[%emt 0:00:23]} 22. Rb7 {[%emt 0:00:10]} Qf6 {[%emt 0:02:42]} 23. Kh1 {[%emt 0:07:02]} Rae8 {[%emt 0:07:50]} 24. Qc5 {[%emt 0:03:23]} a6 {[%emt 0:15:05]} 25. a4 {[%emt 0:00:21]} f3 {[%emt 0:03:29]} 26. exf3 {[%emt 0:01:07]} exf3 {[%emt 0:00:42]} 27. Bf1 {[%emt 0:00:09]} Re2 {[%emt 0:01:03]} 28. Kg1 {[%emt 0:00:45]} Rfe8 {[%emt 0:00:38]} 29. Rdb1 {[%emt 0:05:58]} Rd2 {[%emt 0:08:15]} 30. Rb8 {[%emt 0:01:06]} Rxb8 {[%emt 0:05:21]} 31. Rxb8+ {[%emt 0:00:04]} Kg7 {[%emt 0:00:05]} 32. Rb7+ {[%emt 0:02:33]} Bf7 {[%emt 0:00:12]} 33. Rd7 {[%emt 0:01:59]} Rd1 {[%emt 0:02:46]} 34. h3 {[%emt 0:03:30]} h6 {[%emt 0:02:22]} 35. Rd6 {[%emt 0:02:28]} Qe7 {[%emt 0:00:17]} 36. Qe5+ {[%emt 0:01:07]} Qxe5 {[%emt 0:00:07]} 37. dxe5 {[%emt 0:00:02]} Bd5 {[%emt 0:00:42]} 38. g4 {[%emt 0:01:20]} Ra1 {[%emt 0:00:25]} 39. Rf6 {[%emt 0:00:45]} Bc4 {[%emt 0:00:12]} 40. Rxf3 {[%emt 0:00:33]} Rxf1+ {[%emt 0:00:06]} 41. Kh2 {[%emt 0:00:06]} Bd5 {[%emt 0:00:12]} 42. Rf6 {[%emt 0:00:20]} Rh1+ {[%emt 0:00:05]} 0-1

[Event "EYCC Open U20 2021"]
[Site "Tornelo"]
[Date "2021.10.15"]
[Round "2.2"]
[White "Rozen, Eytan"]
[Black "Sokolovsky, Yahli"]
[Result "1/2-1/2"]
[ECO "A11"]
[WhiteElo "2386"]
[BlackElo "2422"]
[Annotator "ChessBase"]
[PlyCount "64"]
[EventDate "2021.10.15"]
[EventType "swiss"]
[EventCountry "NET"]
[SourceTitle "playchess.com"]
[Source "ChessBase"]
[SourceQuality "1"]
[TimeControl "5400+30"]

1. c4 {[%emt 0:00:30]} c6 {[%emt 0:02:08]} 2. Nf3 {[%emt 0:00:10]} d5 {[%emt 0:00:37]} 3. e3 {[%emt 0:00:03]} Nf6 {[%emt 0:01:04]} 4. b3 {[%emt 0:00:37]} e6 {[%emt 0:01:31]} 5. Nc3 {[%emt 0:00:32]} Bd6 {[%emt 0:00:31]} 6. Bb2 {[%emt 0:00:40]} O-O {[%emt 0:01:46]} 7. Qc2 {[%emt 0:01:32]} e5 {[%emt 0:00:59]} 8. cxd5 {[%emt 0:00:07]} cxd5 {[%emt 0:00:04]} 9. Nb5 {[%emt 0:00:04]} Nc6 {[%emt 0:05:36]} 10. Nxd6 {[%emt 0:00:03]} Qxd6 {[%emt 0:01:15]} 11. d4 {[%emt 0:02:20]} e4 {[%emt 0:05:01]} 12. Ne5 {[%emt 0:00:03]} Nd7 {[%emt 0:06:12]} 13. Nxc6 {[%emt 0:04:01]} bxc6 {[%emt 0:00:04]} 14. a4 {[%emt 0:00:47]} Re8 {[%emt 0:06:22]} 15. Be2 {[%emt 0:07:58]} Re6 {[%emt 0:07:09]} 16. Ba3 {[%emt 0:02:14]} Qc7 {[%emt 0:00:11]} 17. b4 {[%emt 0:04:28]} a6 {[%emt 0:12:32]} 18. h4 {[%emt 0:08:50]} Rh6 {[%emt 0:09:30]} 19. g4 {[%emt 0:09:04]} g5 {[%emt 0:04:29]} 20. Kd2 {[%emt 0:00:24]} Rxh4 {[%emt 0:05:29]} 21. Rxh4 {[%emt 0:00:17]} gxh4 {[%emt 0:00:03]} 22. Rh1 {[%emt 0:00:48]} Nf8 {[%emt 0:19:07]} 23. Rxh4 {[%emt 0:01:13]} Bd7 {[%emt 0:00:45]} 24. Qc5 {[%emt 0:03:35]} Ne6 {[%emt 0:06:17]} 25. Qe7 {[%emt 0:02:04]} Qd8 {[%emt 0:02:13]} 26. Qxd8+ {[%emt 0:00:52]} Rxd8 {[%emt 0:00:02]} 27. Rh1 {[%emt 0:17:26]} Ra8 {[%emt 0:00:56]} 28. Rh5 {[%emt 0:01:05]} f6 {[%emt 0:00:35]} 29. Bb2 {[%emt 0:02:13]} Ng5 {[%emt 0:00:20]} 30. Bc3 {[%emt 0:00:14]} Kg7 {[%emt 0:01:43]} 31. Rh1 {[%emt 0:01:46]} Nf3+ {[%emt 0:00:50]} 32. Bxf3 {[%emt 0:00:10]} exf3 {[%emt 0:00:01]} 1/2-1/2

[Event "EYCC Open U20 2021"]
[Site "Tornelo"]
[Date "2021.10.15"]
[Round "2.5"]
[White "Kirilmaz, Emre"]
[Black "Dudin, Gleb"]
[Result "0-1"]
[ECO "A45"]
[WhiteElo "2147"]
[BlackElo "2438"]
[Annotator "NA"]
[PlyCount "84"]
[EventDate "2021.10.15"]
[EventType "swiss"]
[EventCountry "NET"]
[SourceTitle "playchess.com"]
[Source "ChessBase"]
[SourceQuality "1"]
[TimeControl "5400+30"]

1. d4 {[%emt 0:00:30]} Nf6 {[%emt 0:00:37]} 2. c3 {[%emt 0:00:19]} d6 {[%emt 0:00:10]} 3. Bg5 {[%emt 0:00:13]} Nbd7 {[%emt 0:00:08]} 4. Nd2 {[%emt 0:01:18]} e5 {[%emt 0:00:48]} 5. e3 {[%emt 0:05:44]} Be7 {[%emt 0:00:14]} 6. Bd3 {[%emt 0:00:34]} O-O {[%emt 0:01:18]} 7. Ngf3 {[%emt 0:01:57]} b6 {[%emt 0:03:09]} 8. Qc2 {[%emt 0:10:19]} h6 {[%emt 0:02:49]} 9. Bxf6 {[%emt 0:03:18]} Bxf6 {[%emt 0:00:48]} 10. Bh7+ {[%emt 0:01:22]} Kh8 {[%emt 0:00:08]} 11. Be4 {[%emt 0:00:11]} Rb8 {[%emt 0:00:17]} 12. h4 {[%emt 0:01:13]} exd4 {[%emt 0:02:46]} 13. exd4 {[%emt 0:00:56]} c5 {[%emt 0:00:36]} 14. g4 {[%emt 0:01:12]} cxd4 {[%emt 0:01:22]} 15. cxd4 {[%emt 0:02:17]} Ba6 {[%emt 0:17:39]} 16. g5 {[%emt 0:01:43] [#]} Re8 $1 {[%emt 0:01:37]} 17. gxf6 $19 {[%emt 0:11:17]} (17. Kd1 $11 {and White stays safe.}) 17... d5 {[%emt 0:01:33]} 18. fxg7+ {[%emt 0:12:29]} Kg8 {[%emt 0:01:43]} 19. Qc6 {[%emt 0:21:43]} dxe4 {[%emt 0:10:09]} 20. Qxh6 {[%emt 0:07:10]} exf3+ {[%emt 0:00:32]} 21. Kd1 {[%emt 0:00:07]} Be2+ {[%emt 0:02:05]} 22. Kc2 {[%emt 0:00:12]} f6 {[%emt 0:03:09]} 23. Qh8+ {[%emt 0:07:53]} Kf7 {[%emt 0:00:08]} 24. Qh5+ {[%emt 0:01:29]} Ke7 {[%emt 0:01:38]} 25. Rag1 {[%emt 0:00:30]} Rg8 {[%emt 0:03:58]} 26. Qf5 {[%emt 0:02:00]} Rc8+ {[%emt 0:12:53]} 27. Kb1 {[%emt 0:00:25]} Ne5 {[%emt 0:00:32]} 28. Qf4 {[%emt 0:01:02]} Nc4 {[%emt 0:00:35]} 29. Qe4+ {[%emt 0:00:51]} Kd6 {[%emt 0:00:30]} 30. Nxc4+ {[%emt 0:00:32]} Rxc4 {[%emt 0:04:05]} 31. h5 {[%emt 0:00:26]} Re8 {[%emt 0:02:13]} 32. Qf4+ {[%emt 0:00:32]} Kc6 {[%emt 0:01:02]} 33. Rc1 {[%emt 0:01:21]} Kb7 {[%emt 0:01:23]} 34. Rxc4 {[%emt 0:00:17]} Bxc4 {[%emt 0:00:05]} 35. h6 {[%emt 0:00:28]} Qd5 {[%emt 0:01:14]} 36. b3 {[%emt 0:02:14]} Bxb3 {[%emt 0:02:23]} 37. Rc1 {[%emt 0:01:30]} Bxa2+ {[%emt 0:01:09]} 38. Ka1 {[%emt 0:01:01]} Qa5 {[%emt 0:01:26]} 39. Qc7+ {[%emt 0:00:23]} Ka6 {[%emt 0:00:08]} 40. Qc3 {[%emt 0:00:32]} Qa4 {[%emt 0:05:01]} 41. Qc6 {[%emt 0:00:32]} Qa3 {[%emt 0:00:23]} 42. Qc2 {[%emt 0:00:58]} Bb3+ {[%emt 0:00:09]} 0-1

[Event "EYCC Open U20 2021"]
[Site "Tornelo"]
[Date "2021.10.15"]
[Round "2.6"]
[White "Murzin, Volodar"]
[Black "Kalogridis, Antonios"]
[Result "1-0"]
[ECO "B11"]
[WhiteElo "2513"]
[BlackElo "2275"]
[Annotator "ChessBase"]
[PlyCount "105"]
[EventDate "2021.10.15"]
[EventType "swiss"]
[EventCountry "NET"]
[SourceTitle "playchess.com"]
[Source "ChessBase"]
[SourceQuality "1"]
[TimeControl "5400+30"]

1. e4 {[%emt 0:00:30]} c6 {[%emt 0:00:33]} 2. Nf3 {[%emt 0:00:10]} d5 {[%emt 0:00:05]} 3. Nc3 {[%emt 0:00:04]} dxe4 {[%emt 0:00:05]} 4. Nxe4 {[%emt 0:00:03]} Nf6 {[%emt 0:00:03]} 5. Qe2 {[%emt 0:01:42]} Bf5 {[%emt 0:00:08]} 6. Nxf6+ {[%emt 0:06:58]} gxf6 {[%emt 0:00:04]} 7. d4 {[%emt 0:00:12]} Qd5 {[%emt 0:00:05]} 8. Be3 {[%emt 0:20:40]} Nd7 {[%emt 0:05:00]} 9. c3 {[%emt 0:09:13]} e5 {[%emt 0:11:42]} 10. Qc4 {[%emt 0:16:57]} Be6 {[%emt 0:08:37]} 11. Qxd5 {[%emt 0:00:18]} cxd5 {[%emt 0:00:34]} 12. g3 {[%emt 0:04:27]} h6 {[%emt 0:06:33]} 13. Nh4 {[%emt 0:01:25]} e4 {[%emt 0:07:58]} 14. Ng2 {[%emt 0:07:31]} Nb6 {[%emt 0:02:27]} 15. Bf4 {[%emt 0:01:08]} Rc8 {[%emt 0:01:06]} 16. Ne3 {[%emt 0:03:47]} a6 {[%emt 0:01:59]} 17. Rb1 {[%emt 0:05:22]} Na4 {[%emt 0:02:02]} 18. f3 {[%emt 0:03:32]} exf3 {[%emt 0:01:52]} 19. Bd3 {[%emt 0:01:06]} b5 {[%emt 0:02:52]} 20. O-O {[%emt 0:02:27]} Rc6 {[%emt 0:06:34]} 21. a3 {[%emt 0:04:28]} Kd7 {[%emt 0:02:31]} 22. Rxf3 {[%emt 0:01:31]} Nb6 {[%emt 0:01:56]} 23. Rf2 {[%emt 0:01:45]} Na4 {[%emt 0:01:40]} 24. h4 {[%emt 0:02:58]} Rg8 {[%emt 0:02:07]} 25. Kh2 {[%emt 0:00:07]} Rh8 {[%emt 0:00:26]} 26. Re1 {[%emt 0:03:07]} Rg8 {[%emt 0:00:45]} 27. Nf5 {[%emt 0:00:54]} Rh8 {[%emt 0:00:15]} 28. Bc1 {[%emt 0:00:12]} Nb6 {[%emt 0:00:43]} 29. Ne3 {[%emt 0:00:16]} Be7 {[%emt 0:00:07]} 30. Ng2 {[%emt 0:00:14]} Nc8 {[%emt 0:00:40]} 31. Nf4 {[%emt 0:00:06]} Bd8 {[%emt 0:01:45]} 32. Nh5 {[%emt 0:00:47]} Bg4 {[%emt 0:00:59]} 33. Bf5+ {[%emt 0:00:33]} Bxf5 {[%emt 0:00:06]} 34. Rxf5 {[%emt 0:00:03]} Re6 {[%emt 0:07:39]} 35. Rxd5+ {[%emt 0:00:27]} Nd6 {[%emt 0:00:15]} 36. Rf1 {[%emt 0:00:56]} Kc6 {[%emt 0:00:51]} 37. Rc5+ {[%emt 0:00:08]} Kd7 {[%emt 0:00:27]} 38. Nf4 {[%emt 0:00:16]} Re4 {[%emt 0:00:09]} 39. Rh5 {[%emt 0:00:28]} f5 {[%emt 0:00:15]} 40. Kh3 {[%emt 0:01:15]} Ke7 {[%emt 0:02:22]} 41. Nd3 {[%emt 0:00:20]} Re6 {[%emt 0:00:54]} 42. Bf4 {[%emt 0:00:31]} Ne8 {[%emt 0:02:03]} 43. Rxf5 {[%emt 0:00:17]} f6 {[%emt 0:00:35]} 44. Rh5 {[%emt 0:00:56]} Ng7 {[%emt 0:01:29]} 45. Rxh6 {[%emt 0:00:21]} Rg8 {[%emt 0:00:06]} 46. Rh7 {[%emt 0:01:24]} Kf7 {[%emt 0:01:22]} 47. Bh6 {[%emt 0:00:08]} Bc7 {[%emt 0:00:35]} 48. Re1 {[%emt 0:00:29]} Rxe1 {[%emt 0:00:55]} 49. Nxe1 {[%emt 0:00:03]} Kg6 {[%emt 0:00:02]} 50. Rxg7+ {[%emt 0:00:04]} Rxg7 {[%emt 0:00:03]} 51. Bxg7 {[%emt 0:00:01]} Kxg7 {[%emt 0:00:02]} 52. Kg4 {[%emt 0:00:13]} Kg6 {[%emt 0:00:15]} 53. Nd3 {[%emt 0:00:06]} 1-0

[Event "EYCC Open U20 2021"]
[Site "Tornelo"]
[Date "2021.10.15"]
[Round "2.7"]
[White "Ibrahimli, Murad"]
[Black "Stoleriu, George"]
[Result "1/2-1/2"]
[ECO "E00"]
[WhiteElo "2435"]
[BlackElo "2373"]
[Annotator "NA"]
[PlyCount "141"]
[EventDate "2021.10.15"]
[EventType "swiss"]
[EventCountry "NET"]
[SourceTitle "playchess.com"]
[Source "ChessBase"]
[SourceQuality "1"]
[TimeControl "5400+30"]

1. d4 {[%emt 0:00:30]} Nf6 {[%emt 0:02:14]} 2. c4 {[%emt 0:00:05]} e6 {[%emt 0:00:08]} 3. g3 {[%emt 0:00:01]} Bb4+ {[%emt 0:00:29]} 4. Bd2 {[%emt 0:00:04]} Qe7 {[%emt 0:00:32]} 5. Bg2 {[%emt 0:00:02]} Bxd2+ {[%emt 0:00:06]} 6. Qxd2 {[%emt 0:00:11]} d6 {[%emt 0:00:06]} 7. e3 {[%emt 0:00:30]} O-O {[%emt 0:04:56]} 8. Nc3 {[%emt 0:00:04]} e5 {[%emt 0:05:28]} 9. Nge2 {[%emt 0:00:06]} Re8 {[%emt 0:00:18]} 10. h3 {[%emt 0:00:42]} h5 {[%emt 0:08:25]} 11. Nd5 {[%emt 0:02:39]} Nxd5 {[%emt 0:05:03]} 12. cxd5 {[%emt 0:00:06]} Nd7 {[%emt 0:04:48]} 13. Rc1 {[%emt 0:00:06]} Nf6 {[%emt 0:01:02]} 14. dxe5 {[%emt 0:00:26]} dxe5 {[%emt 0:00:17]} 15. Nc3 {[%emt 0:01:21]} Rd8 {[%emt 0:03:30]} 16. e4 {[%emt 0:01:47]} c6 {[%emt 0:03:58]} 17. O-O {[%emt 0:00:40]} Bd7 {[%emt 0:01:28]} 18. Qe3 {[%emt 0:01:00]} cxd5 {[%emt 0:07:52]} 19. exd5 {[%emt 0:00:05]} Qd6 {[%emt 0:00:14]} 20. Rfe1 {[%emt 0:00:29]} Re8 {[%emt 0:00:12]} 21. Qg5 {[%emt 0:01:44]} Rac8 {[%emt 0:04:27]} 22. Re2 {[%emt 0:01:13]} Re7 {[%emt 0:13:12]} 23. Rce1 {[%emt 0:01:00]} Rce8 $1 {[%emt 0:00:05]} 24. a3 {[%emt 0:10:10]} a5 {[%emt 0:02:14]} 25. Re4 {[%emt 0:16:03]} Nxe4 {[%emt 0:05:31]} 26. Nxe4 {[%emt 0:00:03]} Qg6 {[%emt 0:03:11]} 27. Qxg6 {[%emt 0:00:07]} fxg6 {[%emt 0:00:04]} 28. Nd6 {[%emt 0:00:01]} Kf8 {[%emt 0:13:09]} 29. Nxe8 {[%emt 0:00:41]} Rxe8 {[%emt 0:00:14]} 30. Be4 {[%emt 0:01:51]} Kf7 {[%emt 0:03:20]} 31. Kg2 {[%emt 0:02:03]} Rc8 {[%emt 0:02:25]} 32. Re3 {[%emt 0:00:04]} g5 {[%emt 0:00:56]} 33. Rf3+ {[%emt 0:01:26]} Ke7 {[%emt 0:00:03]} 34. d6+ {[%emt 0:05:54]} Kxd6 {[%emt 0:00:31]} 35. Rf7 {[%emt 0:00:03]} g4 {[%emt 0:02:27]} 36. hxg4 {[%emt 0:00:08]} hxg4 {[%emt 0:00:18]} 37. Rxg7 {[%emt 0:01:03]} Rf8 {[%emt 0:02:00]} 38. Kf1 {[%emt 0:01:35]} b5 {[%emt 0:00:39]} 39. Ke2 {[%emt 0:00:35]} b4 {[%emt 0:00:14]} 40. axb4 {[%emt 0:00:04]} axb4 {[%emt 0:00:05]} 41. Ke3 {[%emt 0:00:02]} Rf6 $11 {[%emt 0:01:14]} 42. Rg8 {[%emt 0:00:13]} Kc7 {[%emt 0:00:30]} 43. Ra8 {[%emt 0:00:57]} Rb6 {[%emt 0:01:32]} 44. Ra5 {[%emt 0:00:19]} Kd6 {[%emt 0:00:08]} 45. Bd3 {[%emt 0:00:52]} Ke6 {[%emt 0:00:34]} 46. Be2 {[%emt 0:00:35]} Kf6 {[%emt 0:00:06]} 47. Rc5 {[%emt 0:00:03]} Be6 {[%emt 0:00:32]} 48. Rc7 {[%emt 0:00:20]} Rd6 {[%emt 0:00:31]} 49. Rh7 {[%emt 0:00:43]} Rd4 {[%emt 0:00:19]} 50. Rh5 {[%emt 0:00:10]} Bf5 {[%emt 0:01:01]} 51. Rh6+ {[%emt 0:00:04]} Ke7 {[%emt 0:00:10]} 52. Rb6 {[%emt 0:00:05]} Re4+ {[%emt 0:01:08]} 53. Kd2 {[%emt 0:00:02]} Rd4+ {[%emt 0:00:05]} 54. Ke1 {[%emt 0:00:02]} Be6 {[%emt 0:00:26]} 55. Rc6 {[%emt 0:00:15]} Bd5 {[%emt 0:00:39]} 56. Rc7+ {[%emt 0:00:14]} Kd6 {[%emt 0:00:09]} 57. Rc8 {[%emt 0:00:16]} Be6 {[%emt 0:00:22]} 58. Rd8+ {[%emt 0:00:08]} Kc5 {[%emt 0:00:03]} 59. Re8 {[%emt 0:00:33]} Kd6 {[%emt 0:00:06]} 60. Ba6 {[%emt 0:01:25]} Bd7 {[%emt 0:01:20]} 61. Rg8 {[%emt 0:00:38]} Be6 {[%emt 0:00:18]} 62. Rd8+ {[%emt 0:00:09]} Kc5 {[%emt 0:00:05]} 63. Re8 {[%emt 0:00:04]} Kd6 {[%emt 0:00:10]} 64. Bc8 {[%emt 0:00:22]} Bxc8 {[%emt 0:00:15]} 65. Rxc8 {[%emt 0:00:04]} Kd5 {[%emt 0:01:00]} 66. Ke2 {[%emt 0:03:33]} Re4+ {[%emt 0:01:21]} 67. Kd2 {[%emt 0:00:29]} Rd4+ {[%emt 0:00:06]} 68. Ke3 {[%emt 0:00:04]} Re4+ {[%emt 0:00:05]} 69. Kd2 {[%emt 0:00:09]} Rd4+ {[%emt 0:00:03]} 70. Ke3 {[%emt 0:00:02]} Re4+ {[%emt 0:00:03]} 71. Kd2 {[%emt 0:00:03]} 1/2-1/2